bitfinex-derivatives/quotes_SOLF0:USTF0_20250731
["timestamp","ask_amount","ask_price","bid_price","bid_amount"]
[1753932249298,4.29497288,180.18,180.13,1.95212681]
[1753932249492,4.29497288,180.17,180.13,1.95212681]
[1753932249691,4.29497288,180.16,180.13,1.95212681]
[1753932249891,4.29497288,180.15,180.13,1.95212681]
[1753932250095,6.62241916,180.19,180.13,1.95212681]
[1753932250296,4.29509824,180.18,180.13,1.95212681]
[1753932250496,4.29509824,180.17,180.13,1.95212681]
[1753932250696,4.29509824,180.16,180.13,1.95212681]
[1753932250994,6.62241916,180.19,180.13,1.95212681]
[1753932250995,4.29509824,180.15,180.13,1.95212681]
[1753932251190,6.62241916,180.19,180.13,1.95212681]
[1753932251391,4.29503628,180.18,180.13,1.95212681]
[1753932251601,4.29503628,180.17,180.13,1.95212681]
[1753932251793,4.29503628,180.16,180.13,1.95212681]
[1753932251992,4.29503628,180.15,180.13,1.95212681]
[1753932252193,6.62241916,180.19,180.13,1.95212681]
[1753932252498,4.29529361,180.18,180.13,1.95212681]
[1753932252697,4.29529361,180.17,180.13,1.95212681]
[1753932252893,4.29529361,180.16,180.13,1.95212681]
[1753932253095,4.29529361,180.15,180.13,1.95212681]
[1753932253293,1.95212681,180.19,180.13,1.95212681]
[1753932253594,4.2952089,180.18,180.13,1.95212681]
[1753932253794,4.2952089,180.17,180.13,1.95212681]
[1753932253996,4.2952089,180.16,180.13,1.95212681]
[1753932254195,4.2952089,180.15,180.13,1.95212681]
[1753932254395,1.95212681,180.19,180.13,1.95212681]
[1753932254602,4.29520327,180.18,180.13,1.95212681]
[1753932254898,4.29520327,180.17,180.13,1.95212681]
[1753932255098,4.29520327,180.16,180.13,1.95212681]
[1753932255298,4.29520327,180.15,180.13,1.95212681]
[1753932255499,1.95212681,180.19,180.13,1.95212681]
[1753932255700,4.29515825,180.18,180.13,1.95212681]
[1753932255999,4.29515825,180.17,180.14,1.95212681]
[1753932256201,4.29515825,180.16,180.14,1.95212681]
[1753932256396,4.29515825,180.15,180.14,1.95212681]
[1753932257000,4.29515825,180.15,180.07,156.37143633]
[1753932257302,1.95212681,180.19,180.14,1.95212681]
[1753932257595,4.29498218,180.18,180.14,1.95212681]
[1753932257798,4.29498218,180.17,180.14,1.95212681]
[1753932257992,4.29498218,180.16,180.14,1.95212681]
[1753932258191,1.95212681,180.19,180.14,1.95212681]
[1753932258396,4.29498218,180.18,180.14,1.95212681]
[1753932258598,4.29498218,180.17,180.14,1.95212681]
[1753932258795,4.29498218,180.16,180.14,1.95212681]
[1753932258998,1.95212681,180.19,180.14,1.95212681]
[1753932259191,4.29470606,180.18,180.14,1.95212681]
[1753932259393,4.29470606,180.17,180.14,1.95212681]
[1753932259598,4.29470606,180.16,180.14,1.95212681]
[1753932259799,1.95212681,180.19,180.14,1.95212681]
[1753932260002,4.29452895,180.18,180.14,1.95212681]
[1753932260200,4.29452895,180.17,180.14,1.95212681]
[1753932260399,4.29452895,180.16,180.14,1.95212681]
[1753932260600,1.95212681,180.19,180.14,1.95212681]
[1753932260800,4.29438151,180.18,180.14,1.95212681]
[1753932261098,4.29438151,180.17,180.14,1.95212681]
[1753932261299,4.29438151,180.16,180.14,1.95212681]
[1753932261599,1.95212681,180.19,180.14,1.95212681]
[1753932261799,4.29426266,180.18,180.14,1.95212681]
[1753932261995,4.29426266,180.17,180.14,1.95212681]
[1753932262200,4.29426266,180.16,180.14,1.95212681]
[1753932262402,1.95212681,180.19,180.14,1.95212681]
[1753932262600,4.29417156,180.18,180.14,1.95212681]
[1753932262801,4.29417156,180.17,180.14,1.95212681]
[1753932262996,4.29417156,180.16,180.14,1.95212681]
[1753932263297,1.95212681,180.19,180.14,1.95212681]
[1753932263496,4.29410761,180.18,180.14,1.95212681]
[1753932263700,4.29410761,180.17,180.14,1.95212681]
[1753932263998,4.29410761,180.16,180.14,1.95212681]
[1753932264196,1.95212681,180.19,180.14,1.95212681]
[1753932264396,4.29410761,180.18,180.14,1.95212681]
[1753932264600,4.29410761,180.17,180.14,1.95212681]
[1753932264803,4.29410761,180.16,180.14,1.95212681]
[1753932265102,1.95212681,180.19,180.14,1.95212681]
[1753932265297,4.29407037,180.18,180.14,1.95212681]
[1753932265496,4.29407037,180.17,180.14,1.95212681]
[1753932265698,4.29407037,180.16,180.14,1.95212681]
[1753932265991,1.95212681,180.19,180.14,1.95212681]
[1753932266197,4.29451044,180.18,180.14,1.95212681]
[1753932266398,4.29451044,180.17,180.14,1.95212681]
[1753932266697,4.29451044,180.16,180.14,1.95212681]
[1753932266893,1.95212681,180.19,180.14,1.95212681]
[1753932267098,4.29503182,180.18,180.14,1.95212681]
[1753932267295,4.29503182,180.17,180.15,1.95212681]
[1753932267498,4.29503182,180.16,180.15,1.95212681]
[1753932267698,4.29503182,180.18,180.15,1.95212681]
[1753932268203,4.29503182,180.17,180.15,1.95212681]
[1753932268403,4.29503182,180.16,180.15,1.95212681]
[1753932268605,4.29503182,180.19,180.15,1.95212681]
[1753932268805,4.29503182,180.18,180.15,1.95212681]
[1753932269005,4.29503182,180.17,180.15,1.95212681]
[1753932269206,4.29503182,180.16,180.15,1.95212681]
[1753932269606,4.29503182,180.19,180.15,1.95212681]
[1753932269806,4.29503182,180.18,180.17,1.95212681]
[1753932270104,4.29503182,180.19,180.17,1.95212681]
[1753932270309,4.29503182,180.18,180.17,1.95212681]
[1753932271307,4.29503182,180.19,180.17,1.95212681]
[1753932271508,4.29503182,180.18,180.17,1.95212681]
[1753932271807,4.29503182,180.18,180.15,1.95212681]
[1753932272010,4.29503182,180.17,180.15,1.95212681]
[1753932272206,4.29503182,180.16,180.15,1.95212681]
[1753932272806,4.29503182,180.18,180.15,1.95212681]
[1753932273007,4.29503182,180.17,180.15,1.95212681]
[1753932273210,4.29503182,180.16,180.15,1.95212681]
[1753932273407,4.29503182,180.18,180.15,1.95212681]
[1753932273607,4.29503182,180.17,180.15,1.95212681]
[1753932273800,4.29503182,180.16,180.15,1.95212681]
[1753932274003,4.29503182,180.18,180.15,1.95212681]
[1753932274204,4.29503182,180.17,180.15,1.95212681]
[1753932274408,4.29503182,180.16,180.15,1.95212681]
[1753932274803,4.29503182,180.18,180.15,1.95212681]
[1753932275009,4.29503182,180.17,180.15,1.95212681]
[1753932275308,4.29503182,180.16,180.15,1.95212681]
[1753932275714,4.29503182,180.19,180.15,1.95212681]
[1753932275909,4.29503182,180.18,180.17,1.95212681]
[1753932283509,4.29503182,180.18,180.07,163.37143633]
[1753932283712,4.29503182,180.17,180.14,1.95212681]
[1753932283914,4.29503182,180.16,180.14,1.95212681]
[1753932284116,4.29503182,180.15,180.14,1.95212681]
[1753932284911,4.29503182,180.17,180.14,1.95212681]
[1753932285113,4.29503182,180.16,180.14,1.95212681]
[1753932285307,4.29503182,180.15,180.14,1.95212681]
[1753932285511,4.29503182,180.17,180.14,1.95212681]
[1753932285711,4.29503182,180.16,180.14,1.95212681]
[1753932285917,4.29503182,180.15,180.14,1.95212681]
[1753932286218,4.29503182,180.17,180.14,1.95212681]
[1753932286412,4.29503182,180.16,180.14,1.95212681]
[1753932286614,4.29503182,180.15,180.14,1.95212681]
[1753932286817,4.29503182,180.17,180.14,1.95212681]
[1753932287019,4.29503182,180.16,180.14,1.95212681]
[1753932287212,4.29503182,180.15,180.14,1.95212681]
[1753932287413,4.29503182,180.17,180.14,1.95212681]
[1753932287713,4.29503182,180.16,180.14,1.95212681]
[1753932288012,4.29503182,180.15,180.14,1.95212681]
[1753932288318,4.29503182,180.17,180.14,1.95212681]
[1753932288517,4.29503182,180.16,180.14,1.95212681]
[1753932288813,4.29503182,180.15,180.14,1.95212681]
[1753932289016,4.29503182,180.17,180.14,1.95212681]
[1753932289215,4.29503182,180.16,180.14,1.95212681]
[1753932289417,4.29503182,180.15,180.14,1.95212681]
[1753932289617,4.29503182,180.17,180.14,1.95212681]
[1753932289818,4.29503182,180.16,180.14,1.95212681]
[1753932290018,4.29503182,180.15,180.14,1.95212681]
[1753932290412,4.29503182,180.17,180.14,1.95212681]
[1753932290613,4.29503182,180.16,180.14,1.95212681]
[1753932290815,4.29503182,180.15,180.14,1.95212681]
[1753932291417,4.29503182,180.17,180.14,1.95212681]
[1753932291615,4.29503182,180.16,180.14,1.95212681]
[1753932291818,4.29503182,180.15,180.14,1.95212681]
[1753932292019,4.29503182,180.17,180.14,1.95212681]
[1753932292221,4.29503182,180.16,180.14,1.95212681]
[1753932292420,4.29503182,180.15,180.14,1.95212681]
[1753932292720,4.29503182,180.17,180.14,1.95212681]
[1753932292913,4.67029235,180.18,180.16,1.95212681]
[1753932293118,4.3045469,180.17,180.16,1.95212681]
[1753932298126,4.3045469,180.17,180.07,163.37143633]
[1753932298325,4.3045469,180.16,180.15,1.95212681]
[1753932300326,4.67029235,180.21,180.15,1.95212681]
[1753932300527,4.30306097,180.2,180.18,1.95212681]
[1753932300823,4.30306097,180.19,180.18,1.95212681]
[1753932307832,4.30306097,180.19,180.07,163.37143633]
[1753932308032,4.30306097,180.18,180.16,1.95212681]
[1753932308229,4.30306097,180.17,180.14,1.95212681]
[1753932308434,1.95212681,180.2,180.14,1.95212681]
[1753932308639,8.96983467,180.19,180.14,1.95212681]
[1753932308838,4.29954232,180.18,180.14,1.95212681]
[1753932309039,4.67029235,180.19,180.14,1.95212681]
[1753932309040,4.29954232,180.17,180.14,1.95212681]
[1753932309243,4.29954232,180.16,180.14,1.95212681]
[1753932309433,4.29954232,180.15,180.14,1.95212681]
[1753932309629,4.67029235,180.19,180.14,1.95212681]
[1753932309630,4.29954232,180.18,180.14,1.95212681]
[1753932309838,4.29954232,180.17,180.14,1.95212681]
[1753932310039,4.29954232,180.16,180.14,1.95212681]
[1753932310235,4.29954232,180.15,180.14,1.95212681]
[1753932310631,4.29954232,180.18,180.14,1.95212681]
[1753932310936,4.29954232,180.17,180.14,1.95212681]
[1753932311236,4.29954232,180.16,180.14,1.95212681]
[1753932311437,4.29954232,180.15,180.14,1.95212681]
[1753932311636,4.29954232,180.18,180.14,1.95212681]
[1753932311836,4.29954232,180.17,180.14,1.95212681]
[1753932312040,4.29954232,180.16,180.14,1.95212681]
[1753932312243,4.29954232,180.15,180.14,1.95212681]
[1753932313040,4.29954232,180.18,180.14,1.95212681]
[1753932313341,4.29954232,180.17,180.14,1.95212681]
[1753932313539,4.29954232,180.16,180.14,1.95212681]
[1753932313738,4.29954232,180.15,180.14,1.95212681]
[1753932314134,4.29954232,180.18,180.14,1.95212681]
[1753932314338,4.29954232,180.17,180.14,1.95212681]
[1753932314538,4.29954232,180.16,180.14,1.95212681]
[1753932314740,4.29954232,180.15,180.14,1.95212681]
[1753932314941,4.29954232,180.18,180.14,1.95212681]
[1753932315146,4.29954232,180.17,180.14,1.95212681]
[1753932315443,4.29954232,180.16,180.14,1.95212681]
[1753932315639,4.29954232,180.15,180.14,1.95212681]
[1753932317448,4.29954232,180.15,180.13,1.95212681]
[1753932317646,4.29954232,180.14,180.13,1.95212681]
[1753932318346,4.67029235,180.2,180.13,1.95212681]
[1753932318547,4.29908626,180.19,180.16,1.95212681]
[1753932318739,4.29908626,180.18,180.16,1.95212681]
[1753932318941,4.29908626,180.17,180.16,1.95212681]
[1753932323551,4.29908626,180.17,180.14,1.95212681]
[1753932323847,4.29908626,180.16,180.14,1.95212681]
[1753932324047,4.67029235,180.2,180.14,1.95212681]
[1753932324350,4.29896733,180.19,180.14,1.95212681]
[1753932324545,4.29896733,180.18,180.14,1.95212681]
[1753932324748,4.29896733,180.17,180.14,1.95212681]
[1753932325045,4.29896733,180.16,180.14,1.95212681]
[1753932325247,4.67029235,180.2,180.14,1.95212681]
[1753932325446,4.2989512,180.19,180.14,1.95212681]
[1753932325747,4.2989512,180.18,180.14,1.95212681]
[1753932325948,4.2989512,180.17,180.14,1.95212681]
[1753932326148,4.2989512,180.16,180.14,1.95212681]
[1753932326344,6.62241916,180.2,180.14,1.95212681]
[1753932326548,4.29895028,180.19,180.14,1.95212681]
[1753932326748,4.29895028,180.18,180.14,1.95212681]
[1753932326949,4.29895028,180.17,180.14,1.95212681]
[1753932327150,4.29895028,180.16,180.14,1.95212681]
[1753932327351,4.67572859,180.2,180.14,1.95212681]
[1753932327550,4.29885896,180.19,180.14,1.95212681]
[1753932327751,4.29885896,180.18,180.14,1.95212681]
[1753932327951,4.29885896,180.17,180.14,1.95212681]
[1753932328151,4.29885896,180.16,180.14,1.95212681]
[1753932328352,6.6278554,180.2,180.14,1.95212681]
[1753932328550,4.29877853,180.19,180.14,1.95212681]
[1753932328750,4.29877853,180.18,180.14,1.95212681]
[1753932328950,4.29877853,180.17,180.14,1.95212681]
[1753932329149,4.67572859,180.21,180.16,1.95212681]
[1753932329352,4.29759326,180.2,180.16,1.95212681]
[1753932329551,4.29759326,180.19,180.16,1.95212681]
[1753932329747,4.29759326,180.18,180.16,1.95212681]
[1753932329947,4.29759326,180.17,180.16,1.95212681]
[1753932335355,4.29759326,180.17,180.07,163.37143633]
[1753932335556,4.67572859,180.21,180.16,1.95212681]
[1753932335754,8.97302884,180.2,180.16,1.95212681]
[1753932335960,4.29730025,180.19,180.16,1.95212681]
[1753932336157,4.29730025,180.18,180.16,1.95212681]
[1753932336367,4.29730025,180.17,180.16,1.95212681]
[1753932338256,6.6278554,180.22,180.16,1.95212681]
[1753932338459,4.29627861,180.21,180.16,1.95212681]
[1753932338659,4.29627861,180.2,180.16,1.95212681]
[1753932338853,4.29627861,180.19,180.16,1.95212681]
[1753932339049,4.29627861,180.18,180.16,1.95212681]
[1753932339258,6.6278554,180.22,180.16,1.95212681]
[1753932339464,4.29567861,180.21,180.16,1.95212681]
[1753932339661,4.29567861,180.2,180.16,1.95212681]
[1753932339857,4.29567861,180.19,180.16,1.95212681]
[1753932340055,4.29567861,180.18,180.16,1.95212681]
[1753932340254,6.6278554,180.22,180.16,1.95212681]
[1753932340452,4.29551695,180.21,180.16,1.95212681]
[1753932340656,4.29551695,180.2,180.17,1.95212681]
[1753932340956,4.29551695,180.19,180.17,1.95212681]
[1753932341263,4.29551695,180.18,180.17,1.95212681]
[1753932341654,4.29551695,180.2,180.17,1.95212681]
[1753932341959,4.67572859,180.21,180.17,1.95212681]
[1753932341960,4.29551695,180.19,180.17,1.95212681]
[1753932342164,4.29551695,180.18,180.17,1.95212681]
[1753932342861,4.29551695,180.2,180.17,1.95212681]
[1753932343054,4.29551695,180.19,180.17,1.95212681]
[1753932343258,4.29551695,180.18,180.17,1.95212681]
[1753932343458,4.29551695,180.2,180.17,1.95212681]
[1753932343660,4.29551695,180.19,180.17,1.95212681]
[1753932343856,4.29551695,180.18,180.17,1.95212681]
[1753932344057,4.29551695,180.2,180.17,1.95212681]
[1753932344361,4.29551695,180.19,180.17,1.95212681]
[1753932344562,4.29551695,180.18,180.17,1.95212681]
[1753932344763,4.29551695,180.2,180.17,1.95212681]
[1753932344958,4.29551695,180.19,180.17,1.95212681]
[1753932345158,4.29551695,180.18,180.17,1.95212681]
[1753932345362,4.29551695,180.2,180.17,1.95212681]
[1753932345564,4.29551695,180.19,180.17,1.95212681]
[1753932345764,4.29551695,180.18,180.17,1.95212681]
[1753932346160,4.29551695,180.2,180.17,1.95212681]
[1753932346362,4.29551695,180.19,180.17,1.95212681]
[1753932346561,4.29551695,180.18,180.17,1.95212681]
[1753932347157,4.29551695,180.2,180.17,1.95212681]
[1753932347365,4.29551695,180.19,180.17,1.95212681]
[1753932347667,4.29551695,180.18,180.17,1.95212681]
[1753932348369,4.29551695,180.2,180.17,1.95212681]
[1753932348566,4.29551695,180.19,180.17,1.95212681]
[1753932348866,4.29551695,180.18,180.17,1.95212681]
[1753932349262,4.29551695,180.2,180.17,1.95212681]
[1753932349463,4.29551695,180.19,180.17,1.95212681]
[1753932349658,4.29551695,180.18,180.17,1.95212681]
[1753932350263,4.29551695,180.2,180.17,1.95212681]
[1753932350565,4.29551695,180.19,180.17,1.95212681]
[1753932350765,4.29551695,180.18,180.17,1.95212681]
[1753932351165,4.29551695,180.2,180.17,1.95212681]
[1753932351467,4.29551695,180.19,180.17,1.95212681]
[1753932351669,4.29551695,180.18,180.17,1.95212681]
[1753932352068,4.29551695,180.21,180.17,1.95212681]
[1753932352368,4.29551695,180.2,180.17,1.95212681]
[1753932352570,4.29551695,180.19,180.17,1.95212681]
[1753932352768,4.29551695,180.18,180.17,1.95212681]
[1753932353165,4.29551695,180.21,180.17,1.95212681]
[1753932353367,4.29551695,180.2,180.17,1.95212681]
[1753932353560,4.29551695,180.19,180.17,1.95212681]
[1753932353765,4.29551695,180.18,180.17,1.95212681]
[1753932354367,4.29551695,180.21,180.17,1.95212681]
[1753932354570,4.29551695,180.2,180.17,1.95212681]
[1753932354771,4.29551695,180.19,180.17,1.95212681]
[1753932355072,4.29551695,180.18,180.17,1.95212681]
[1753932355865,4.29551695,180.21,180.17,1.95212681]
[1753932356168,4.67572859,180.22,180.17,1.95212681]
[1753932356169,4.29551695,180.2,180.17,1.95212681]
[1753932356369,4.29551695,180.19,180.17,1.95212681]
[1753932356569,4.29551695,180.18,180.17,1.95212681]
[1753932356767,4.29551695,180.21,180.17,1.95212681]
[1753932356969,4.29551695,180.2,180.17,1.95212681]
[1753932357169,4.29551695,180.19,180.17,1.95212681]
[1753932357470,4.29551695,180.18,180.17,1.95212681]
[1753932357870,4.29551695,180.21,180.17,1.95212681]
[1753932358065,4.29551695,180.2,180.17,1.95212681]
[1753932358270,4.29551695,180.19,180.17,1.95212681]
[1753932358475,4.29551695,180.18,180.17,1.95212681]
[1753932359063,4.29551695,180.21,180.17,1.95212681]
[1753932359273,4.29551695,180.2,180.17,1.95212681]
[1753932359472,4.29551695,180.19,180.17,1.95212681]
[1753932359672,4.29551695,180.18,180.17,1.95212681]
[1753932360075,4.29551695,180.21,180.17,1.95212681]
[1753932360374,6.6278554,180.22,180.17,1.95212681]
[1753932360375,4.29551695,180.2,180.17,1.95212681]
[1753932360573,4.29551695,180.19,180.17,1.95212681]
[1753932360774,4.29551695,180.18,180.17,1.95212681]
[1753932361175,4.29551695,180.2,180.17,1.95212681]
[1753932361472,4.29551695,180.19,180.17,1.95212681]
[1753932361673,4.29551695,180.18,180.17,1.95212681]
[1753932361867,4.29551695,180.2,180.17,1.95212681]
[1753932362068,4.29551695,180.19,180.17,1.95212681]
[1753932362264,4.29551695,180.18,180.17,1.95212681]
[1753932362464,4.29551695,180.2,180.17,1.95212681]
[1753932362664,4.29551695,180.19,180.17,1.95212681]
[1753932362864,4.29551695,180.18,180.17,1.95212681]
[1753932363675,4.29551695,180.2,180.17,1.95212681]
[1753932363869,4.29551695,180.19,180.17,1.95212681]
[1753932364074,4.29551695,180.18,180.17,1.95212681]
[1753932366176,4.29551695,180.18,180.07,7.0]
[1753932366475,4.30094441,180.17,180.07,7.0]
[1753932366676,4.30094441,180.16,180.07,7.0]
[1753932366877,4.67952892,180.21,180.07,7.0]
[1753932367079,4.30029992,180.2,180.07,7.0]
[1753932367279,4.30029992,180.19,180.07,7.0]
[1753932367480,4.30029992,180.18,180.07,7.0]
[1753932367683,4.30029992,180.17,180.07,7.0]
[1753932367875,4.67952892,180.21,180.16,1.95212681]
[1753932368075,4.29947058,180.2,180.16,1.95212681]
[1753932368376,4.29947058,180.19,180.16,1.95212681]
[1753932368575,4.29947058,180.18,180.16,1.95212681]
[1753932368775,4.29947058,180.17,180.16,1.95212681]
[1753932369581,4.29947058,180.17,180.13,144.26485685]
[1753932369776,4.67952892,180.21,180.13,144.26485685]
[1753932369777,4.29947058,180.16,180.13,146.21698366]
[1753932369982,4.29947058,180.15,180.13,146.21698366]
[1753932370281,4.29947058,180.14,180.13,146.21698366]
[1753932370680,4.29947058,180.14,180.13,1.95212681]
[1753932371681,4.29947058,180.14,180.07,7.0]
[1753932371883,6.63165573,180.18,180.13,1.95212681]
[1753932372080,4.29747102,180.17,180.13,1.95212681]
[1753932372280,4.29747102,180.16,180.13,1.95212681]
[1753932372476,4.29747102,180.15,180.13,1.95212681]
[1753932372681,4.29747102,180.14,180.13,1.95212681]
[1753932375784,4.29747102,180.14,180.1,1.95212681]
[1753932375984,4.29747102,180.13,180.1,1.95212681]
[1753932376179,1.95212681,180.16,180.1,1.95212681]
[1753932376391,4.29032807,180.15,180.1,1.95212681]
[1753932376582,4.29032807,180.14,180.1,1.95212681]
[1753932376781,4.29032807,180.13,180.1,1.95212681]
[1753932376984,1.95212681,180.16,180.1,1.95212681]
[1753932377184,4.29024099,180.15,180.1,1.95212681]
[1753932377485,4.29024099,180.14,180.1,1.95212681]
[1753932377787,4.29024099,180.13,180.1,1.95212681]
[1753932377981,1.95212681,180.16,180.1,1.95212681]
[1753932378177,4.28918418,180.15,180.1,1.95212681]
[1753932378377,4.28918418,180.14,180.1,1.95212681]
[1753932378582,4.28918418,180.13,180.1,1.95212681]
[1753932378791,1.95212681,180.16,180.1,1.95212681]
[1753932378991,4.28821262,180.15,180.1,1.95212681]
[1753932379180,4.28821262,180.14,180.1,1.95212681]
[1753932379388,4.28821262,180.13,180.1,1.95212681]
[1753932379587,1.95212681,180.16,180.1,1.95212681]
[1753932379789,1.95212681,180.14,180.1,1.95212681]
[1753932379985,1.95212681,180.12,180.08,1.95212681]
[1753932380390,4.28524149,180.11,180.08,1.95212681]
[1753932380580,4.28524149,180.1,180.08,1.95212681]
[1753932380785,1.95212681,180.12,180.08,1.95212681]
[1753932380981,4.28471204,180.11,180.08,1.95212681]
[1753932381183,1.95212681,180.12,180.08,1.95212681]
[1753932381394,4.2824279,180.11,180.08,1.95212681]
[1753932381692,1.95212681,180.12,180.08,1.95212681]
[1753932381893,4.2824279,180.11,180.08,1.95212681]
[1753932382092,1.95212681,180.12,180.08,1.95212681]
[1753932382393,4.28099872,180.11,180.08,1.95212681]
[1753932382591,1.95212681,180.12,180.08,1.95212681]
[1753932382791,4.28119919,180.11,180.08,1.95212681]
[1753932382992,1.95212681,180.12,180.08,1.95212681]
[1753932383185,4.28166468,180.11,180.08,1.95212681]
[1753932383492,1.95212681,180.12,180.08,1.95212681]
[1753932383899,1.95212681,180.15,180.1,1.95212681]
[1753932384192,4.28181426,180.14,180.1,1.95212681]
[1753932384394,1.95212681,180.15,180.1,1.95212681]
[1753932384596,4.28157414,180.14,180.1,1.95212681]
[1753932384894,1.95212681,180.15,180.1,1.95212681]
[1753932385096,1.95212681,180.16,180.12,1.95212681]
[1753932385284,4.28268953,180.15,180.12,1.95212681]
[1753932385487,1.95212681,180.16,180.12,1.95212681]
[1753932385684,4.28299206,180.15,180.12,1.95212681]
[1753932385894,1.95212681,180.16,180.12,1.95212681]
[1753932386094,4.28325472,180.15,180.12,1.95212681]
[1753932386292,1.95212681,180.16,180.12,1.95212681]
[1753932386492,4.28319054,180.15,180.07,144.30826613]
[1753932386791,1.95212681,180.16,180.12,1.95212681]
[1753932386991,4.28264406,180.15,180.12,1.95212681]
[1753932387193,1.95212681,180.17,180.07,144.30826613]
[1753932387384,4.28273953,180.16,180.12,1.95212681]
[1753932387585,4.28273953,180.15,180.12,1.95212681]
[1753932387789,1.95212681,180.17,180.12,1.95212681]
[1753932387989,4.28247487,180.16,180.12,1.95212681]
[1753932388195,4.28247487,180.15,180.12,1.95212681]
[1753932388398,4.28120508,180.14,180.12,1.95212681]
[1753932388597,1.95212681,180.17,180.12,1.95212681]
[1753932388801,1.95212681,180.15,180.1,1.95212681]
[1753932389096,4.28119899,180.14,180.1,1.95212681]
[1753932389992,4.28119899,180.14,180.07,144.30826613]
[1753932390192,4.28119899,180.14,180.1,1.95212681]
[1753932391798,4.28119899,180.14,180.07,144.30826613]
[1753932391999,1.95212681,180.13,180.09,1.95212681]
[1753932394596,4.27657747,180.12,180.09,1.95212681]
[1753932394796,1.95212681,180.13,180.09,1.95212681]
[1753932394998,4.27660304,180.12,180.09,1.95212681]
[1753932395190,1.95212681,180.13,180.09,1.95212681]
[1753932395394,4.2762142,180.12,180.09,1.95212681]
[1753932395590,1.95212681,180.13,180.09,1.95212681]
[1753932395898,4.2762142,180.12,180.09,1.95212681]
[1753932396098,1.95212681,180.13,180.09,1.95212681]
[1753932396299,4.27590966,180.12,180.09,1.95212681]
[1753932396501,1.95212681,180.13,180.09,1.95212681]
[1753932396698,4.27590966,180.12,180.09,1.95212681]
[1753932396904,1.95212681,180.13,180.09,1.95212681]
[1753932397198,4.27590966,180.12,180.09,1.95212681]
[1753932397402,1.95212681,180.13,180.09,1.95212681]
[1753932397605,4.27578815,180.12,180.09,1.95212681]
[1753932397802,1.95212681,180.13,180.09,1.95212681]
[1753932398002,4.27578815,180.12,180.07,144.30826613]
[1753932398207,1.95212681,180.13,180.08,1.95212681]
[1753932398506,4.27574847,180.12,180.08,1.95212681]
[1753932398705,1.95212681,180.13,180.08,1.95212681]
[1753932398909,4.2757531,180.12,180.08,1.95212681]
[1753932399107,1.95212681,180.13,180.08,1.95212681]
[1753932402111,4.2769879,180.12,180.08,1.95212681]
[1753932402312,1.95212681,180.13,180.08,1.95212681]
[1753932402516,4.27698885,180.12,180.08,1.95212681]
[1753932402813,1.95212681,180.13,180.08,1.95212681]
[1753932403014,4.27655228,180.12,180.08,1.95212681]
[1753932403316,1.95212681,180.13,180.08,1.95212681]
[1753932403515,4.27700265,180.12,180.08,1.95212681]
[1753932403708,1.95212681,180.13,180.08,1.95212681]
[1753932404006,4.27700263,180.12,180.08,1.95212681]
[1753932404312,1.95212681,180.13,180.08,1.95212681]
[1753932404511,4.27754895,180.12,180.08,1.95212681]
[1753932404709,1.95212681,180.13,180.08,1.95212681]
[1753932405714,4.27782325,180.12,180.08,1.95212681]
[1753932405914,1.95212681,180.13,180.08,1.95212681]
[1753932406117,4.27782325,180.12,180.08,1.95212681]
[1753932406408,1.95212681,180.13,180.08,1.95212681]
[1753932406613,4.27831058,180.12,180.08,1.95212681]
[1753932406915,1.95212681,180.13,180.08,1.95212681]
[1753932407104,4.27831058,180.12,180.08,1.95212681]
[1753932407305,1.95212681,180.13,180.08,1.95212681]
[1753932407511,4.27887898,180.12,180.08,1.95212681]
[1753932407711,1.95212681,180.13,180.08,1.95212681]
[1753932407912,4.27887898,180.12,180.08,1.95212681]
[1753932408115,1.95212681,180.13,180.08,1.95212681]
[1753932408315,4.27936391,180.12,180.08,1.95212681]
[1753932408615,1.95212681,180.13,180.08,1.95212681]
[1753932408815,4.27936391,180.12,180.08,1.95212681]
[1753932409017,1.95212681,180.13,180.08,1.95212681]
[1753932409219,4.27936855,180.12,180.08,1.95212681]
[1753932409521,1.95212681,180.13,180.08,1.95212681]
[1753932409709,4.28012469,180.12,180.09,1.95212681]
[1753932409913,1.95212681,180.13,180.09,1.95212681]
[1753932410113,4.28073654,180.12,180.09,1.95212681]
[1753932410317,1.95212681,180.13,180.09,1.95212681]
[1753932410614,4.28162009,180.12,180.09,1.95212681]
[1753932410914,1.95212681,180.13,180.09,1.95212681]
[1753932411119,4.28161283,180.12,180.09,1.95212681]
[1753932411415,1.95212681,180.13,180.09,1.95212681]
[1753932411617,4.28272601,180.12,180.09,1.95212681]
[1753932411817,1.95212681,180.13,180.09,1.95212681]
[1753932412019,4.28272662,180.12,180.09,1.95212681]
[1753932412218,4.28387889,180.11,180.09,1.95212681]
[1753932412418,1.95212681,180.13,180.09,1.95212681]
[1753932412612,4.28389386,180.12,180.09,1.95212681]
[1753932412814,1.95212681,180.13,180.09,1.95212681]
[1753932413012,4.28389123,180.12,180.09,1.95212681]
[1753932413214,4.28526908,180.11,180.09,1.95212681]
[1753932413411,1.95212681,180.14,180.09,1.95212681]
[1753932413610,4.28546944,180.13,180.09,1.95212681]
[1753932413818,4.28546944,180.12,180.09,1.95212681]
[1753932414019,1.95212681,180.14,180.09,1.95212681]
[1753932414221,4.28547207,180.13,180.09,1.95212681]
[1753932414421,4.28547207,180.12,180.09,1.95212681]